bitfinex-derivatives/quotes_ETHF0:USTF0_20250704
["timestamp","ask_amount","ask_price","bid_price","bid_amount"]
[1751607124167,0.7749,2580.1,2580.0,0.77491]
[1751607124474,0.6892,2580.1,2580.0,0.77491]
[1751607125071,1.4641,2580.1,2580.0,0.77491]
[1751607125271,0.6892,2580.1,2580.0,0.77491]
[1751607125773,36.1082,2580.1,2579.8,3.2078]
[1751607125972,0.77496,2579.9,2579.8,3.2078]
[1751607126473,0.775,2579.8,2579.4,3.2078]
[1751607126668,2.0501,2579.8,2579.4,3.866]
[1751607126867,0.6811,2579.7,2579.6,0.77505]
[1751607130868,0.6811,2579.7,2579.4,0.6582]
[1751607131074,0.6811,2579.7,2579.6,0.77505]
[1751607131275,1.45612,2579.7,2579.6,0.77505]
[1751607131468,2.76902,2579.7,2579.6,0.77505]
[1751607131673,1.994,2579.7,2579.6,0.77505]
[1751607132675,2.76902,2579.7,2579.6,0.77505]
[1751607133072,1.994,2579.7,2579.6,0.77505]
[1751607133274,0.6811,2579.7,2579.6,0.77505]
[1751607134973,0.6598,2580.0,2579.9,0.77496]
[1751607135178,47.0328,2580.0,2579.9,3.41840569]
[1751607135571,88.60773,2580.0,2579.9,3.41840569]
[1751607135770,47.0328,2580.0,2579.9,0.77496]
[1751607136681,11.6308,2580.0,2579.9,3.41840569]
[1751607137274,11.6308,2580.0,2579.9,0.77496]
[1751607137476,12.40573,2580.0,2579.9,0.77496]
[1751607137682,11.6308,2580.0,2579.9,0.77496]
[1751607138180,35.413,2580.1,2580.0,0.77493]
[1751607138375,12.42024,2580.3,2580.2,0.77487]
[1751607138578,48.79753755,2580.3,2580.2,0.77487]
[1751607138780,47.0534,2580.3,2580.2,0.77487]
[1751607138983,47.0534,2580.3,2580.1,0.77489]
[1751607139184,49.12226,2580.3,2580.2,0.77487]
[1751607139479,49.12224,2580.3,2580.2,0.77487]
[1751607140578,48.3474,2580.3,2580.2,0.77487]
[1751607140777,47.0444,2580.3,2580.2,0.77487]
[1751607141170,47.0444,2580.3,2580.2,1.45057]
[1751607141571,3.2078,2580.4,2580.3,0.77484]
[1751607141777,3.2078,2580.4,2580.3,3.41828569]
[1751607141976,3.2078,2580.4,2580.3,0.77484]
[1751607142177,0.77481,2580.4,2580.3,0.77484]
[1751607142483,47.036,2580.6,2580.3,0.77482]
[1751607142980,0.77479,2580.5,2580.4,0.77479]
[1751607143578,51.00884569,2580.6,2580.4,0.77479]
[1751607143780,48.3654,2580.6,2580.5,0.77478]
[1751607143985,0.77478,2580.5,2580.2,0.6757]
[1751607144278,0.77478,2580.5,2580.4,0.77479]
[1751607144483,0.77478,2580.5,2580.2,0.6757]
[1751607144484,0.77482,2580.4,2580.3,0.77482]
[1751607144676,0.7748,2580.5,2580.4,0.7748]
[1751607144876,0.7748,2580.5,2580.3,0.77482]
[1751607145277,48.3654,2580.6,2580.4,0.7748]
[1751607145477,0.77479,2580.5,2580.4,0.7748]
[1751607145779,0.77481,2580.4,2580.3,0.77482]
[1751607146284,2.1321,2580.5,2580.3,0.77482]
[1751607146484,36.17381,2580.4,2580.3,0.77482]
[1751607147485,35.399,2580.4,2580.3,0.77482]
[1751607147884,36.17381,2580.4,2580.3,0.77482]
[1751607148086,35.399,2580.4,2580.3,0.77482]
[1751607148584,36.17381,2580.4,2580.3,0.77482]
[1751607148784,35.399,2580.4,2580.3,0.77482]
[1751607151885,36.17381,2580.4,2580.3,0.77482]
[1751607152090,35.399,2580.4,2580.3,0.77482]
[1751607152287,36.17381,2580.4,2580.3,0.77482]
[1751607152488,0.77484,2580.3,2580.2,1.45056]
[1751607152688,39.34514569,2580.4,2579.7,0.6722]
[1751607152893,0.77492,2580.1,2579.9,0.77493]
[1751607153593,0.77492,2580.1,2580.0,0.77493]
[1751607154495,0.77493,2580.0,2579.9,0.77494]
[1751607154695,0.77492,2580.1,2580.0,0.77492]
[1751607154989,0.77493,2580.0,2579.8,0.6505]
[1751607155198,36.13293,2580.0,2579.9,0.77494]
[1751607156093,35.358,2580.0,2579.9,0.77494]
[1751607157294,36.13293,2580.0,2579.9,0.77494]
[1751607157895,0.77496,2579.9,2579.8,1.42547]
[1751607158201,35.358,2580.0,2579.9,0.77496]
[1751607158395,36.13293,2580.0,2579.9,0.77496]
[1751607158594,0.77496,2579.9,2579.8,1.42547]
[1751607158995,35.358,2580.0,2579.9,0.77496]
[1751607159392,3.2078,2580.5,2579.9,12.78861569]
[1751607159605,3.8501,2580.5,2580.3,0.77481]
[1751607159902,3.8501,2580.5,2580.4,0.77481]
[1751607161402,35.431,2580.5,2580.4,0.77481]
[1751607162102,1.3446,2580.7,2580.6,0.77475]
[1751607162103,36.7756,2580.7,2580.6,0.77475]
[1751607162298,37.74489656,2580.7,2580.6,0.77475]
[1751607162495,14.1778,2580.8,2580.6,2.64344569]
[1751607162699,14.1778,2580.8,2580.7,0.77472]
[1751607162895,49.6038,2580.8,2580.7,1.47282]
[1751607163499,49.6038,2580.8,2580.7,0.77472]
[1751607163905,50.37849,2580.8,2580.7,0.77472]
[1751607164304,0.77474,2580.7,2580.2,3.2078]
[1751607164597,35.424,2580.6,2580.5,0.77478]
[1751607168203,14.1778,2580.8,2580.3,3.34154569]
[1751607168408,14.1778,2580.8,2580.6,0.77475]
[1751607168409,36.39297029,2580.7,2580.6,0.77475]
[1751607168607,0.96797029,2580.7,2580.6,0.77475]
[1751607169003,47.16669,2580.8,2580.7,0.77472]
[1751607169309,48.13464358,2580.8,2580.7,0.77472]
[1751607170803,48.13464358,2580.8,2580.6,0.77473]
[1751607171003,47.16669,2580.8,2580.6,0.77473]
[1751607171309,47.16669,2580.8,2580.7,0.77472]
[1751607171511,48.13465604,2580.8,2580.5,2.64344569]
[1751607171701,0.77478,2580.5,2580.3,0.6981]
[1751607171904,0.77481,2580.4,2580.0,3.8768]
[1751607172104,2.0676,2580.4,2580.3,0.77482]
[1751607172505,38.25041,2580.4,2580.3,0.77482]
[1751607172706,38.25041,2580.4,2580.0,1.3461]
[1751607172902,38.25043,2580.4,2580.2,0.77485]
[1751607173113,38.25043,2580.4,2580.0,1.3461]
[1751607173311,38.25043,2580.4,2580.3,0.77484]
[1751607173707,37.4756,2580.4,2580.3,0.77484]
[1751607174013,35.408,2580.4,2580.3,3.41828569]
[1751607174406,0.6613,2580.7,2580.6,0.77475]
[1751607174606,35.41,2580.7,2580.6,0.77475]
[1751607174807,11.6409,2580.8,2580.7,0.77472]
[1751607175009,0.6659,2580.8,2580.7,3.41816569]
[1751607175514,36.0849,2580.8,2580.7,3.41816569]
[1751607177012,36.0849,2580.8,2580.7,0.77472]
[1751607182419,36.85959,2580.8,2580.7,0.77472]
[1751607182620,36.0849,2580.8,2580.7,0.77472]
[1751607182819,0.6659,2580.8,2580.7,0.77472]
[1751607183118,36.0569,2580.8,2580.7,0.77472]
[1751607183922,36.83159,2580.8,2580.7,0.77472]
[1751607184118,37.02349523,2580.8,2580.1,0.6998]
[1751607184323,3.41821569,2580.6,2580.4,0.77478]
[1751607184524,35.388,2580.5,2580.4,0.77478]
[1751607184717,36.16278,2580.5,2580.4,0.77478]
[1751607185324,35.388,2580.5,2580.4,0.77478]
[1751607186621,36.16278,2580.5,2580.4,0.77478]
[1751607187017,35.388,2580.5,2580.4,0.77478]
[1751607187423,36.16278,2580.5,2580.4,0.77478]
[1751607187825,36.16278,2580.5,2580.3,0.77482]
[1751607188023,0.6662,2580.4,2580.0,3.2078]
[1751607188225,2.72732,2580.4,2580.2,0.77487]
[1751607188426,36.15684,2580.3,2580.2,0.77487]
[1751607189127,35.382,2580.3,2580.2,0.77487]
[1751607189519,35.387,2580.5,2580.1,2.64344569]
[1751607189724,35.387,2580.5,2580.4,3.41825569]
[1751607189925,3.8437,2580.6,2580.5,0.77478]
[1751607190125,0.96830691,2580.6,2580.5,0.77478]
[1751607190627,0.96830691,2580.6,2580.5,2.13238]
[1751607190823,35.4,2580.8,2580.7,0.77472]
[1751607191023,36.36828329,2580.8,2580.7,0.77472]
[1751607193322,37.14297329,2580.8,2580.7,0.77472]
[1751607193524,36.36828329,2580.8,2580.7,0.77472]
[1751607194829,37.14297329,2580.8,2580.7,0.77472]
[1751607195123,0.77472,2580.7,2580.6,0.77474]
[1751607195329,0.77472,2580.7,2580.5,0.77476]
[1751607195527,0.77472,2580.7,2580.6,0.77475]
[1751607195928,37.47741,2580.8,2580.3,3.8874]
[1751607196227,2.64344569,2580.6,2580.4,0.7748]
[1751607196433,37.02425273,2580.5,2580.4,0.77481]
[1751607196732,37.7108444,2580.5,2580.4,0.77481]
[1751607196930,37.51728,2580.5,2580.4,0.77481]
[1751607197230,38.48563389,2580.5,2580.4,0.77481]
[1751607197425,0.77487,2580.2,2580.1,0.6545]
[1751607197632,39.01355389,2580.5,2580.0,3.98272]
[1751607197633,0.7749,2580.1,2580.0,3.98272]
[1751607197828,0.77488,2580.2,2580.0,3.98272]
[1751607198339,0.6866,2580.1,2580.0,3.98272]
[1751607209140,35.385,2580.3,2580.2,0.77487]
[1751607211538,35.385,2580.3,2580.0,3.2078]
[1751607211839,0.7749,2580.1,2580.0,3.2078]
[1751607212434,1.307,2580.2,2580.1,0.7749]
[1751607212634,36.15985,2580.3,2580.2,0.77487]
[1751607212834,37.12936509,2580.3,2580.2,0.77487]
[1751607214739,36.35450509,2580.3,2580.2,0.77487]
[1751607216840,37.12934509,2580.3,2580.2,0.77487]
[1751607217440,0.77487,2580.2,2580.1,0.77487]
[1751607217639,0.77487,2580.2,2580.1,0.77488]
[1751607218140,36.15986,2580.3,2580.2,0.77487]
[1751607218334,37.12921641,2580.3,2580.2,0.77487]
[1751607218940,36.35435641,2580.3,2580.2,0.77487]
[1751607219131,10.965,2580.4,2580.3,0.77484]
[1751607219336,10.965,2580.9,2580.8,0.77469]
[1751607219537,11.93417809,2580.9,2580.8,3.41813569]
[1751607219837,10.965,2580.9,2580.8,3.41813569]
[1751607220038,3.9106,2581.2,2581.1,0.7746]
[1751607220240,14.1728,2581.5,2581.3,0.77451]
[1751607220444,36.31137144,2581.4,2581.3,0.77451]
[1751607220638,0.96837144,2581.4,2581.3,0.77451]
[1751607221040,3.2078,2581.5,2581.4,0.77451]
[1751607221546,3.98228,2581.5,2581.3,2.07872]
[1751607221843,3.98228,2581.5,2581.2,2.64344569]
[1751607221844,0.77451,2581.4,2581.2,0.77455]
[1751607222143,0.6671,2581.4,2581.2,0.77455]
[1751607222441,1.44162,2581.4,2581.2,0.77455]
[1751607222644,1.44162,2581.4,2581.1,1.41418]
[1751607222843,1.44162,2581.4,2581.2,0.77456]
[1751607223040,0.77454,2581.3,2581.1,1.41418]
[1751607223343,1.44163,2581.4,2581.1,1.41418]
[1751607224741,0.77454,2581.3,2581.1,1.41418]
[1751607225042,1.44163,2581.4,2581.1,1.41418]
[1751607225434,0.77454,2581.3,2581.1,0.6396]
[1751607225640,0.77454,2581.3,2581.1,1.41419]
[1751607226141,0.77454,2581.3,2581.1,0.6396]
[1751607226539,0.77454,2581.3,2581.1,1.4142]
[1751607227244,0.77454,2581.3,2581.1,4.05764569]
[1751607228050,0.77457,2581.2,2581.1,3.28304569]
[1751607228348,0.77456,2581.3,2581.1,4.05764569]
[1751607228844,0.77457,2581.2,2581.1,3.28304569]
[1751607229046,0.77457,2581.2,2581.1,4.05764569]
[1751607229345,0.77455,2581.3,2581.1,4.05764569]
[1751607231346,0.6671,2581.4,2581.1,4.05764569]
[1751607231543,0.77455,2581.3,2581.1,4.05764569]
[1751607231847,42.7357,2582.2,2581.1,3.28304569]
[1751607232045,3.2078,2582.1,2581.3,1.93635]
[1751607232244,0.7743,2582.1,2581.9,3.41779569]
[1751607232446,3.2078,2582.1,2582.0,0.77431]
[1751607232743,3.2078,2582.1,2581.6,2.64344569]
[1751607232943,0.6367,2582.0,2581.9,0.77436]
[1751607233648,0.77436,2581.9,2581.7,0.7744]
[1751607234050,2.17036,2581.9,2581.7,0.7744]
[1751607234546,1.396,2581.9,2581.8,0.77439]
[1751607234941,2.17036,2581.9,2581.7,0.7744]
[1751607235142,1.396,2581.9,2581.7,0.7744]
[1751607235348,1.396,2581.9,2581.8,0.77439]
[1751607235542,1.396,2581.9,2581.5,0.6955]
[1751607235742,2.17037,2581.9,2581.6,0.77445]
[1751607235942,2.17037,2581.9,2581.7,0.77441]
[1751607236137,1.396,2581.9,2581.8,0.77439]
[1751607237446,0.7744,2581.8,2581.6,0.77444]
[1751607237644,4.03944569,2581.9,2581.5,0.77445]
[1751607237852,2.09633,2581.7,2581.5,0.77445]
[1751607238246,0.675,2581.6,2581.5,0.77445]
[1751607239343,38.5378,2581.8,2581.7,0.77442]
[1751607239547,36.005,2581.8,2581.7,0.77442]
[1751607239747,39.2128,2581.8,2581.7,0.77442]
[1751607240747,39.9872,2581.8,2581.6,0.77443]
[1751607240951,0.77443,2581.7,2581.5,0.77446]
[1751607241152,39.98721,2581.8,2581.6,0.77445]
[1751607241353,41.32691,2581.8,2581.7,0.77442]
[1751607241552,40.5525,2581.8,2581.7,0.77442]
[1751607242054,36.005,2581.8,2581.7,0.77442]
[1751607252152,3.2078,2581.9,2581.7,0.77442]
[1751607252153,38.5258,2581.9,2581.8,0.77439]
[1751607252554,35.318,2581.9,2581.8,1.41759]
[1751607255561,37.47107,2581.9,2581.7,0.77441]
[1751607255860,0.6996,2581.8,2581.7,3.41786569]
[1751607256055,0.6996,2581.8,2581.7,0.77442]
[1751607256257,0.6996,2581.8,2581.5,3.8637]
[1751607256463,3.41789569,2581.6,2581.4,0.7745]
[1751607256760,2.64344569,2581.6,2581.4,0.7745]
[1751607256962,2.64344569,2581.6,2581.3,0.6559]
[1751607256963,0.77448,2581.5,2581.3,1.43042]
[1751607257461,0.77451,2581.4,2581.3,0.6559]
[1751607257663,39.8547,2581.5,2581.1,0.6397]
[1751607257961,0.6482,2581.3,2581.2,0.77457]
[1751607258864,35.316,2581.5,2581.4,0.77451]
[1751607260064,36.09048,2581.5,2581.4,0.77451]
[1751607260260,37.05437286,2581.5,2581.1,3.28314569]
[1751607260459,35.316,2581.5,2581.4,0.77451]
[1751607260653,36.27993792,2581.5,2581.4,0.77451]
[1751607260856,36.27993792,2581.5,2581.3,0.77452]
[1751607260857,37.05441792,2581.5,2581.3,0.77452]
[1751607261057,0.77452,2581.4,2581.2,0.77455]
[1751607261365,0.77454,2581.3,2581.2,0.77455]
[1751607261564,0.77453,2581.4,2581.2,0.77455]
[1751607261856,0.77453,2581.4,2581.3,0.77454]
[1751607262065,0.77453,2581.4,2581.1,1.41429]
[1751607262066,1.41844,2581.3,2581.1,1.41429]
[1751607262364,2.10764,2581.3,2581.1,1.41429]
[1751607264060,37.96144569,2581.2,2580.9,3.98245]
[1751607264254,2.64344569,2581.0,2580.9,0.77466]
[1751607264455,2.10031,2581.1,2580.9,0.77466]
[1751607264962,37.02855569,2581.2,2580.9,0.77466]
[1751607265266,0.77462,2581.1,2580.9,0.77466]
[1751607266463,0.77462,2581.1,2580.6,7.80634569]
[1751607266665,0.77462,2581.1,2580.7,1.2836]
[1751607266860,37.80315569,2581.2,2581.0,0.77463]
[1751607267562,0.7746,2581.1,2581.0,0.77463]
[1751607267865,0.77464,2581.0,2580.8,0.77467]
[1751607268267,0.6874,2580.9,2580.8,0.77467]
[1751607268470,1.46207,2580.9,2580.7,0.7747]
[1751607268767,36.0084,2580.9,2580.8,0.77469]
[1751607269666,36.78306,2580.9,2580.6,5.1274]
[1751607269868,36.78306,2580.9,2580.8,0.77469]
[1751607270074,36.0084,2580.9,2580.8,0.77469]
[1751607271773,36.78306,2580.9,2580.8,0.77469]
[1751607271970,36.78306,2580.9,2580.7,0.7747]
[1751607272472,0.77472,2580.7,2580.6,4.61853]
[1751607272772,1.45351,2580.8,2580.6,4.61853]
[1751607272966,1.45351,2580.8,2580.7,0.77472]
[1751607273166,0.6788,2580.8,2580.7,0.77472]
[1751607273472,0.77472,2580.7,2580.6,3.8438]
[1751607273662,1.4535,2580.8,2580.6,4.61853]
[1751607274468,1.4535,2580.8,2580.7,0.77472]
[1751607274669,1.4535,2580.8,2580.6,4.61853]
[1751607274973,36.78308,2580.9,2580.6,3.8438]
[1751607275173,36.78308,2580.9,2580.7,0.77469]
[1751607275571,0.77469,2580.8,2580.6,4.61853]
[1751607275764,0.77471,2580.8,2580.6,4.61853]
[1751607275969,0.77472,2580.7,2580.6,3.2078]
[1751607276275,3.41816569,2580.7,2580.6,3.2078]
[1751607276973,0.77472,2580.7,2580.6,3.2078]
[1751607277280,0.77472,2580.7,2580.6,3.98255]
[1751607277472,10.945,2580.8,2580.6,3.2078]
[1751607277780,36.09764,2581.0,2580.9,0.77466]
[1751607277978,35.323,2581.0,2580.9,0.77466]
[1751607278479,46.268,2581.1,2581.0,0.77463]
[1751607278674,10.945,2581.1,2581.0,3.41807569]
[1751607279174,10.945,2581.1,2581.0,0.77463]
[1751607281374,11.7196,2581.1,2580.9,2.14814]
[1751607281572,11.7196,2581.1,2581.0,0.77463]
[1751607281973,10.945,2581.1,2581.0,0.77463]
[1751607283784,10.945,2581.1,2581.0,3.41807569]
[1751607283982,10.945,2581.1,2581.0,0.77463]
[1751607284384,10.945,2581.1,2580.9,1.3735]
[1751607284587,0.77464,2581.0,2580.8,0.77467]
[1751607284882,1.46964,2581.0,2580.8,0.77467]
[1751607285081,36.79264,2581.0,2580.8,0.77467]
[1751607286684,36.79264,2581.0,2580.7,1.3647]
[1751607286685,0.77466,2580.9,2580.7,1.3647]
[1751607286983,0.77466,2580.9,2580.7,1.4497]
[1751607287385,36.018,2581.0,2580.7,1.4497]
[1751607287586,0.77468,2580.9,2580.7,1.4497]
[1751607289292,0.77469,2580.8,2580.7,0.675]
[1751607289786,0.77468,2580.9,2580.7,1.4497]
[1751607290186,36.79265,2581.0,2580.8,0.77468]
[1751607290386,0.77466,2580.9,2580.8,0.77468]
[1751607290788,0.77466,2580.9,2580.7,2.7583]
[1751607290989,0.77469,2580.8,2580.7,1.9836]
[1751607291590,0.77472,2580.7,2580.6,3.2078]
[1751607292088,0.77475,2580.6,2580.5,0.6545]
[1751607292286,3.2078,2580.6,2580.0,3.2078]
[1751607292488,5.85124569,2580.3,2580.1,0.6545]
[1751607292693,0.77489,2580.2,2579.9,2.08355]
[1751607292894,0.7749,2580.1,2579.9,2.73805]
[1751607293093,0.77493,2580.0,2579.9,1.9631]
[1751607293293,0.77493,2580.0,2579.9,0.6545]
[1751607293802,1.43432,2580.1,2579.9,0.6545]
[1751607294497,0.77493,2580.0,2579.9,0.6545]
[1751607294696,0.77493,2580.0,2579.8,0.77498]
[1751607295696,4.07776569,2580.1,2579.9,0.77495]
[1751607295898,0.77493,2580.0,2579.8,0.77497]
[1751607296196,3.30284569,2580.1,2579.8,0.77497]
[1751607296495,0.77493,2580.0,2579.8,0.77497]
[1751607297490,36.10193,2580.0,2579.8,0.77499]
[1751607297692,0.77499,2579.8,2579.7,0.7002]
[1751607297891,0.77499,2579.8,2579.6,3.98284]
[1751607298098,0.77498,2579.9,2579.7,0.77501]
[1751607298492,0.77498,2579.9,2579.7,2.14361]
[1751607298997,36.10193,2580.0,2579.8,0.77498]
[1751607299200,35.327,2580.0,2579.9,0.77496]
[1751607299496,35.327,2580.0,2579.9,1.45826]
[1751607299698,36.10193,2580.0,2579.9,0.6833]
[1751607300300,36.10193,2580.0,2579.6,3.98283]
[1751607300301,35.327,2580.0,2579.6,3.98283]
[1751607300498,0.775,2579.8,2579.6,0.77503]
[1751607300701,0.77503,2579.7,2579.5,1.45836]
[1751607300902,0.6998,2579.7,2579.6,0.77505]
[1751607301293,1.45656,2579.9,2579.7,0.775]
[1751607301502,2.15636,2579.9,2579.7,0.775]
[1751607301700,0.77499,2579.8,2579.7,0.775]
[1751607301995,1.3814,2579.9,2579.6,1.301]
[1751607302193,0.77502,2579.8,2579.6,0.77504]
[1751607303407,2.64344569,2579.7,2579.3,5.27502]
[1751607303603,0.7751,2579.5,2579.3,5.27503]
[1751607303801,0.7751,2579.5,2579.3,4.4999]
[1751607304001,0.7751,2579.5,2579.3,5.27503]
[1751607304194,0.77511,2579.4,2579.3,4.4999]
[1751607304393,0.6507,2579.5,2579.3,3.2078]
[1751607304801,0.6507,2579.5,2579.4,0.77511]
[1751607307802,1.42578,2579.5,2579.3,2.06722]
[1751607309107,0.6507,2579.5,2579.4,0.77511]
[1751607309502,1.42578,2579.5,2579.3,2.06722]
[1751607309703,0.6507,2579.5,2579.3,2.06722]
[1751607310405,0.6507,2579.5,2579.4,0.77511]
[1751607310707,0.6507,2579.5,2579.4,2.08901]
[1751607310913,36.10507,2579.6,2579.5,0.77508]
[1751607311109,0.77508,2579.5,2579.4,2.089]
[1751607311303,0.77508,2579.5,2579.4,1.3139]
[1751607311509,0.7751,2579.5,2579.2,5.85124569]
[1751607311810,0.77511,2579.4,2579.3,0.77511]
[1751607312004,0.77514,2579.3,2579.2,3.2078]
[1751607312205,0.77514,2579.3,2579.2,3.98297]
[1751607312410,2.64344569,2579.5,2579.2,3.98297]
[1751607312611,0.77514,2579.3,2579.2,3.2078]
[1751607313210,1.44993,2579.4,2579.2,3.98295]
[1751607313410,0.77514,2579.3,2579.2,3.98295]
[1751607313608,1.41844,2579.3,2579.2,3.98295]
[1751607313803,1.41844,2579.3,2579.2,3.2078]
[1751607314014,0.77522,2579.1,2578.9,5.34664]
[1751607314307,0.77523,2579.0,2578.9,4.5714]
[1751607314612,0.77523,2579.0,2578.9,3.2078]
[1751607318209,0.77523,2579.0,2578.8,0.77528]
[1751607319713,0.77522,2579.1,2578.9,0.77525]
[1751607320114,0.77519,2579.2,2579.0,0.77522]
[1751607321214,11.5933,2579.3,2579.0,2.64344569]
[1751607321409,0.6433,2579.3,2579.2,0.77517]
[1751607321609,0.77514,2579.3,2579.1,2.06618]
[1751607321808,11.6238,2579.4,2579.0,0.7752]
[1751607322009,11.6238,2579.4,2579.1,0.7752]
[1751607322010,0.77517,2579.3,2579.1,0.7752]
[1751607322206,0.77517,2579.2,2579.0,0.7752]
[1751607322613,10.949,2579.4,2579.0,4.58149569]
[1751607322809,10.949,2579.4,2579.3,0.77514]
[1751607323210,10.949,2579.4,2579.3,2.15454]
[1751607326223,11.72411,2579.4,2579.3,2.15454]
[1751607326413,10.949,2579.4,2579.3,2.15454]
[1751607328121,11.72411,2579.4,2579.3,2.15454]
[1751607328310,10.949,2579.4,2579.3,2.15454]
[1751607331018,10.949,2579.4,2579.3,2.83064]
[1751607334325,3.2078,2579.9,2579.8,0.77499]
[1751607334520,3.98276,2579.9,2579.8,0.77499]
[1751607334825,3.2078,2579.9,2579.8,0.77499]
[1751607335017,3.2078,2579.9,2579.8,1.46079]
[1751607335214,10.949,2580.0,2579.9,0.77496]
[1751607335419,10.949,2580.0,2579.9,4.74170569]
[1751607341131,10.949,2580.0,2579.9,2.09826]
[1751607341631,10.949,2580.0,2579.9,0.77496]
[1751607343434,10.949,2580.0,2579.7,0.77499]
[1751607343631,0.77499,2579.8,2579.7,0.77499]
[1751607343931,3.31884569,2579.9,2579.6,3.2078]
[1751607344135,0.6443,2579.7,2579.6,3.98285]
[1751607345832,0.6443,2579.7,2579.6,0.77505]
[1751607346537,0.6443,2579.7,2579.4,0.6651]
[1751607346538,1.41932,2579.7,2579.5,0.77506]
[1751607346739,0.77506,2579.6,2579.2,3.2078]
[1751607346940,0.6852,2579.5,2579.2,3.8496]
[1751607347139,0.6852,2579.5,2579.4,0.77509]
[1751607347542,1.46028,2579.5,2579.3,0.77512]
[1751607347736,0.6852,2579.5,2579.4,0.77511]
[1751607350251,1.46028,2579.5,2579.4,0.77511]
[1751607353454,0.6852,2579.5,2579.4,0.77511]
[1751607357264,1.46028,2579.5,2579.4,0.77511]
[1751607358060,0.6852,2579.5,2579.4,0.77511]
[1751607358865,1.46028,2579.5,2579.4,0.77511]
[1751607359263,0.6852,2579.5,2579.4,0.77511]
[1751607361967,0.6443,2579.7,2579.6,0.77505]
[1751607362268,0.6443,2579.7,2579.3,7.78908569]
[1751607362269,0.6443,2579.7,2579.5,0.77506]
[1751607362464,0.77505,2579.6,2579.4,1.2842]
[1751607362661,0.77505,2579.6,2579.5,0.77508]
[1751607363164,0.77505,2579.6,2579.4,2.05929]
[1751607363365,0.77507,2579.6,2579.4,0.77509]
[1751607364069,1.41934,2579.7,2579.5,0.77508]
[1751607364567,0.6443,2579.7,2579.5,0.77508]
[1751607364769,0.6443,2579.7,2579.6,0.77505]
[1751607366469,0.6661,2579.8,2579.7,0.77502]
[1751607366769,1.44109,2579.8,2579.7,0.77502]
[1751607366969,0.6661,2579.8,2579.7,0.77502]
[1751607367668,1.44109,2579.8,2579.6,0.77503]
[1751607368663,1.44109,2579.8,2579.7,0.77502]
[1751607368967,1.44109,2579.8,2579.6,0.77503]
[1751607370270,1.44109,2579.8,2579.7,0.77502]
[1751607370469,1.44109,2579.8,2579.6,0.77504]
[1751607370671,0.77502,2579.7,2579.6,0.77504]
[1751607371070,0.6661,2579.8,2579.7,0.77502]
[1751607371371,2.40643493,2579.8,2579.6,0.77503]
[1751607371573,1.44111,2579.8,2579.6,0.77503]
[1751607372471,0.77502,2579.7,2579.5,0.77506]
[1751607372672,0.77505,2579.6,2579.4,1.2695]
[1751607372871,37.96144569,2579.6,2579.2,0.6418]
[1751607373176,3.41857569,2579.4,2579.2,0.6418]
[1751607373374,0.77513,2579.4,2579.2,1.41695]
[1751607373687,3.2078,2579.8,2579.3,7.78909569]
[1751607373967,3.2078,2579.8,2579.7,3.41846569]
[1751607374772,0.7026,2580.1,2579.8,0.77499]
[1751607374966,59.6936,2580.2,2579.8,2.16359]
[1751607375172,95.78547,2580.2,2579.8,2.81099]
[1751607375472,0.7749,2580.1,2579.8,2.81099]
[1751607376170,57.26069,2580.2,2580.1,0.7749]
[1751607376376,0.7749,2580.1,2579.8,2.036]
[1751607376576,0.7749,2580.1,2580.0,0.77491]
[1751607376776,1.74122486,2580.1,2580.0,0.77491]
[1751607376970,1.74122486,2580.1,2580.0,1.46171]
[1751607377477,0.96632486,2580.1,2580.0,1.46171]
[1751607377777,1.74122486,2580.1,2580.0,1.46171]
[1751607378072,0.7749,2580.1,2580.0,1.46171]
[1751607378268,11.6476,2580.4,2580.0,1.46171]
[1751607378269,3.2078,2580.6,2580.3,0.77482]
[1751607378466,37.74419041,2580.5,2580.3,0.77482]
[1751607378672,36.77829,2580.5,2580.3,0.77482]
[1751607378979,0.77484,2580.3,2580.1,2.13678]
[1751607379178,0.77487,2580.2,2580.1,0.77488]
[1751607379372,3.41828569,2580.4,2580.1,0.7749]
[1751607379775,4.80968569,2580.4,2580.1,0.7749]
[1751607380279,0.77484,2580.3,2580.0,1.46171]
[1751607380577,4.80967569,2580.4,2580.2,0.77486]
[1751607380777,4.80967569,2580.4,2580.1,0.77488]
[1751607381081,2.64344569,2580.2,2580.0,0.77491]
[1751607381380,0.77492,2580.1,2579.9,3.98276]
[1751607381581,3.48502,2580.1,2579.9,3.98276]
[1751607381779,3.48502,2580.1,2579.9,0.77496]
[1751607383180,3.48502,2580.1,2579.9,0.77493]
[1751607384886,13.6511,2580.1,2579.6,2.62808]
[1751607385181,12.244,2580.1,2580.0,0.77493]
[1751607386381,13.0189,2580.1,2580.0,0.77493]
[1751607386579,13.0189,2580.1,2579.9,0.77494]
[1751607386779,13.0189,2580.1,2580.0,0.77493]
[1751607386980,12.244,2580.1,2580.0,0.77493]
[1751607387483,13.0189,2580.1,2580.0,0.77493]
[1751607387779,13.0189,2580.1,2579.9,0.77494]
[1751607388078,13.01891,2580.1,2579.9,0.77496]
[1751607388386,13.01891,2580.1,2580.0,0.77493]
[1751607389584,11.5812,2580.1,2580.0,0.77493]
[1751607389779,46.249,2580.1,2580.0,0.77493]
[1751607389987,46.249,2580.1,2580.0,1.47993]
[1751607390184,46.249,2580.1,2580.0,2.83103]
[1751607392387,10.941,2580.1,2580.0,2.83103]